Cogmind - Beta 9 @@@ ROGUE MODE // 2019.10.26 @ 18:46:15 Player: Blind Ryan Result: Self-destructed Performance ------------- Evolutions (3) 1500 Regions Visited (5) 1000 Robots Destroyed (22) 110 Value Destroyed (617) 617 Prototype IDs (0) 0 Alien Tech Used (0) 0 Bonus (0) 0 TOTAL SCORE: 3227 Bonus ------- None Cogmind --------- Core Integrity 700/700 Matter 227/300 Energy 265/265 System Corruption 0% Temperature Cool (0) Location -7/Factory Parts ------- Power (1) Improved Ion Engine Propulsion (4) Advanced Treads Advanced Treads Advanced Treads Advanced Treads Utility (4) Large Storage Unit Light Armor Plating Medium Armor Plating Hardened Medium Armor Plating Weapon (4) Light Assault Rifle Heavy Assault Rifle Minigun Grenade Launcher Inventory (10) Light Ion Engine Light Ion Engine Light Treads Peak State ------------ Power Improved Ion Engine Propulsion Advanced Treads Advanced Treads Advanced Treads Advanced Treads Utility Large Storage Unit Light Armor Plating Medium Armor Plating Hardened Medium Armor Plating Weapon Light Assault Rifle Heavy Assault Rifle Minigun Grenade Launcher Inventory Light Ion Engine Light Ion Engine Light Treads [Rating: 28] Favorites ----------- Power Light Ion Engine Engine Light Ion Engine Propulsion Advanced Treads Treads Advanced Treads Leg Aluminum Leg Utility Large Storage Unit Device Improved Sensor Array Storage Large Storage Unit Protection Light Armor Plating Weapon Light Assault Rifle Ballistic Gun Light Assault Rifle Launcher Grenade Launcher Build | -11 -10 -9 -9 -8 -7 ------- Run | Scr Mat Mat Min Mat Fac Slots Evolved 6 | . . 2 . 2 2 Power . | . . . . . . Propulsion 2 | . . 2 . . . Utility 2 | . . . . 1 1 Weapon 2 | . . . . 1 1 Parts Attached 30 | 5 5 14 . 4 2 Power 4 | 1 . 2 . 1 . Engine 4 | 1 . 2 . 1 . Core . | . . . . . . Reactor . | . . . . . . Propulsion 11 | 2 2 7 . . . Treads 6 | 2 . 4 . . . Leg 5 | . 2 3 . . . Wheel . | . . . . . . Hover . | . . . . . . Flight . | . . . . . . Utility 6 | . 2 2 . 1 1 Device 2 | . 1 1 . . . Storage 1 | . 1 . . . . Processor . | . . . . . . Hackware . | . . . . . . Protection 3 | . . 1 . 1 1 Artifact . | . . . . . . Weapon 9 | 2 1 3 . 2 1 Energy Gun . | . . . . . . Energy Cannon . | . . . . . . Ballistic Gun 6 | 2 1 1 . 2 . Ballistic Cannon . | . . . . . . Launcher 3 | . . 2 . . 1 Special Weapon . | . . . . . . Impact Weapon . | . . . . . . Slashing Weapon . | . . . . . . Piercing Weapon . | . . . . . . Special Melee Weapon . | . . . . . . Unidentified Prototypes . | . . . . . . Parts Lost 4 | . 2 2 . . . Power 2 | . 1 1 . . . Propulsion . | . . . . . . Utility . | . . . . . . Weapon 2 | . 1 1 . . . Highest Loss Streak 2 | . 2 1 . . . Average Slot Usage (%) 87 | . 77 86 100 96 98 Engine 10 | . 13 10 11 9 7 Treads 23 | . 21 4 44 36 30 Leg 11 | . 6 35 . . . Device 3 | . 5 6 . . . Storage 7 | . 2 11 11 9 7 Protection 5 | . . . 11 14 23 Ballistic Gun 22 | . 27 18 11 26 23 Launcher 1 | . . . 11 . 5 Naked Turns . | . . . . . . Heaviest Build 51 | 5 21 28 28 41 51 Greatest Support 88 | 40 40 88 88 88 88 Greatest Overweight (x) 8 | . 1 8 . . . Average Overweight (x) . | . . . . . . Largest Inventory Capacity 10 | 4 10 10 10 10 10 Average Capacity 7 | 4 4 10 10 10 10 Most Carried 6 | 3 5 6 3 5 4 Average Carried 2 | 2 3 1 2 3 3 Final Capacity 10 | . . . . . 10 Final Carried 3 | . . . . . 3 Class Distribution -------------------- 56% | Mutant 24% | Scavenger-Tank 18% | Scavenger-Mutant Dominant Class ---------------- Mutant | -10/Materials Scavenger-Mutant | -9/Materials Mutant | -9/Mines Scavenger-Tank | -8/Materials Scavenger-Tank | -7/Factory Resources | -11 -10 -9 -9 -8 -7 ----------- Run | Scr Mat Mat Min Mat Fac Matter Collected 625 | 250 112 109 12 142 . Remotely . | . . . . . . Salvage Created 753 | . 300 293 18 142 . Parts 43 | . 14 15 5 9 . Haulers Intercepted . | . . . . . . Recyclers Shooed . | . . . . . . Parts Field Recycled . | . . . . . . Retrieved Matter . | . . . . . . Parts Self-Destructed . | . . . . . . Prevented . | . . . . . . Kills | -11 -10 -9 -9 -8 -7 ------- Run | Scr Mat Mat Min Mat Fac Combat Hostiles Destroyed 19 | . 9 5 3 2 . Guns 16 | . 9 4 1 2 . AOE 3 | . . 1 2 . . Classes Destroyed 5 | . 2 3 . . . Recycler 1 | . . 1 . . . Watcher 2 | . . 1 . 1 . Swarmer 6 | . 3 . 3 . . Grunt 8 | . 6 2 . . . Sentry 5 | . . 3 . 2 . Best Kill Streak 4 | . 4 3 3 2 . Combat Bots Only 4 | . 4 2 3 1 . Max Kills in Single Turn 3 | . 1 3 2 1 . Gunslinging . | . . . . . . Exploded 2 | . . 1 2 . . Melee . | . . . . . . Uniques/NPCs Destroyed . | . . . . . . Combat | -11 -10 -9 -9 -8 -7 -------- Run | Scr Mat Mat Min Mat Fac Damage Taken 841 | . 379 328 46 88 . Core 71 | . 40 14 . 17 . Absorbed by Shields . | . . . . . . Core Remaining (%) 94 | 100 84 . 96 96 . Volleys Fired 73 | . 44 19 2 8 . Largest 3 | . 2 2 1 3 . Hottest 68 | . 40 43 30 68 . Shots Fired 148 | . 86 36 2 24 . Gun 146 | . 86 35 1 24 . Cannon . | . . . . . . Launcher 2 | . . 1 1 . . Special . | . . . . . . Kinetic 146 | . 86 35 1 24 . Thermal . | . . . . . . Explosive 2 | . . 1 1 . . Electromagnetic . | . . . . . . Robot Hit Streak 18 | . 18 16 1 11 . Robot Miss Streak 3 | . 3 2 1 1 . Penetration Max . | . . . . . . Secondary Targets . | . . . . . . Shots Hit Robots 104 | . 55 28 1 20 . Core Hits 44 | . 19 16 3 6 . Critical Hits 1 | . . . . 1 . Critical Kills . | . . . . . . Critical Parts Destroyed 1 | . . . . 1 . Melee Attacks . | . . . . . . Impact . | . . . . . . Slashing . | . . . . . . Piercing . | . . . . . . Sneak Attacks . | . . . . . . Combat Hostiles . | . . . . . . Follow-up Attacks . | . . . . . . Damage Inflicted 1109 | . 401 319 148 241 . Guns 890 | . 401 234 14 241 . Cannons . | . . . . . . Explosions 219 | . . 85 134 . . Melee . | . . . . . . Ramming . | . . . . . . Kinetic 890 | . 401 234 14 241 . Thermal . | . . . . . . Explosive 219 | . . 85 134 . . Electromagnetic . | . . . . . . Impact . | . . . . . . Slashing . | . . . . . . Piercing . | . . . . . . Highest Corruption . | . . . . . . Average Corruption . | . . . . . . Corruption Purged . | . . . . . . Overload Shots . | . . . . . . Overflow Damage 12 | . . . 12 . . Projectiles . | . . . . . . Explosions 12 | . . . 12 . . Melee . | . . . . . . Knockbacks . | . . . . . . Impact . | . . . . . . Kinetic . | . . . . . . Secondary . | . . . . . . Self-Inflicted Damage 48 | . . 20 28 . . Shots 2 | . . 1 1 . . Rammed . | . . . . . . Targets Rammed . | . . . . . . Kicked . | . . . . . . Crushed . | . . . . . . Highest Temperature 119 | . 12 7 . 119 . Average Temperature 22 | . 7 4 . 48 . Received Heat Transfer 297 | . 138 132 . 27 . Siege Activations . | . . . . . . Robots Corrupted . | . . . . . . Combat Hostiles . | . . . . . . Parts Fried . | . . . . . . Impact Corruptions . | . . . . . . Robots Melted . | . . . . . . Combat Hostiles . | . . . . . . Parts Melted . | . . . . . . Heat Transferred . | . . . . . . Parts Sabotaged . | . . . . . . Parts Stolen . | . . . . . . Parts Stripped . | . . . . . . Power Chain Reactions . | . . . . . . Missiles Intercepted . | . . . . . . Alert | -11 -10 -9 -9 -8 -7 ------- Run | Scr Mat Mat Min Mat Fac Peak Influence 255 | . 255 184 141 151 68 Average Influence 98 | . 104 93 140 98 68 Maximum Alert Level 1 | . 1 . . . . Low Security (%) 96 | . . . . . . Level 1 3 | . . . . . . Level 2 . | . . . . . . Level 3 . | . . . . . . Level 4 . | . . . . . . Level 5 . | . . . . . . High Security . | . . . . . . Max Security . | . . . . . . Squads Dispatched 5 | . 5 . . . . Investigation . | . . . . . . Extermination . | . . . . . . Reinforcement 5 | . 5 . . . . Assault . | . . . . . . Garrison . | . . . . . . Intercept . | . . . . . . Construction Impeded . | . . . . . . Haulers Reinforced . | . . . . . . Stealth | -11 -10 -9 -9 -8 -7 --------- Run | Scr Mat Mat Min Mat Fac Distress Signals 4 | . 2 1 . 1 . Communications Jammed . | . . . . . . Distress Signals . | . . . . . . Times Spotted 30 | . 16 8 1 5 . Peak Tracking Total 4 | . 4 3 1 3 . Tactical Retreats . | . . . . . . Traps | -11 -10 -9 -9 -8 -7 ------- Run | Scr Mat Mat Min Mat Fac Traps Triggered . | . . . . . . Indirectly . | . . . . . . Trap Hack Attempts . | . . . . . . Triggered . | . . . . . . Disarmed . | . . . . . . Reprogrammed . | . . . . . . Reused . | . . . . . . Traps Extracted . | . . . . . . Installed . | . . . . . . Triggered . | . . . . . . Machines | -11 -10 -9 -9 -8 -7 ---------- Run | Scr Mat Mat Min Mat Fac Machines Disabled . | . . . . . . Max in Single Turn . | . . . . . . Machines Sabotaged . | . . . . . . Garrisons Compromised . | . . . . . . Overloaded Fab Kills . | . . . . . . Fab Network Shutdowns . | . . . . . . Hacking | -11 -10 -9 -9 -8 -7 --------- Run | Scr Mat Mat Min Mat Fac Machines Accessed 2 | . . 1 . 1 . Terminals . | . . . . . . Fabricators . | . . . . . . Repair Stations . | . . . . . . Recycling Units 2 | . . 1 . 1 . Scanalyzers . | . . . . . . Garrison Access . | . . . . . . Total Hacks 3 | . . 1 . 2 . Successful 3 | . . 1 . 2 . Failed . | . . . . . . Catastrophic . | . . . . . . Database Lockouts . | . . . . . . Manual . | . . . . . . Terminals . | . . . . . . Fabricators . | . . . . . . Repair Stations . | . . . . . . Recycling Units 3 | . . 1 . 2 . Scanalyzers . | . . . . . . Garrison Access . | . . . . . . Terminal Hacks . | . . . . . . Fabricator Hacks . | . . . . . . Repair Station Hacks . | . . . . . . Recycling Unit Hacks 3 | . . 1 . 2 . Recycle Component 2 | . . 1 . 1 . Report Inventory 1 | . . . . 1 . Scanalyzer . | . . . . . . Garrison Access Hacks . | . . . . . . Unauthorized Hacks . | . . . . . . Terminals . | . . . . . . Fabricators . | . . . . . . Repair Stations . | . . . . . . Recycling Units . | . . . . . . Scanalyzers . | . . . . . . Garrison Access . | . . . . . . Data Cores Recovered . | . . . . . . Used . | . . . . . . Hacking Detections 1 | . . 1 . . . Full Trace Events . | . . . . . . Feedback Events . | . . . . . . Feedback Blocked . | . . . . . . Robot Schematics Acquired . | . . . . . . Robots Built . | . . . . . . Matter . | . . . . . . Time . | . . . . . . Total Robot Build Rating . | . . . . . . Part Schematics Acquired . | . . . . . . Parts Built . | . . . . . . Matter . | . . . . . . Time . | . . . . . . Total Part Build Rating . | . . . . . . Parts Repaired . | . . . . . . Time . | . . . . . . Parts Recycled 2 | . . 1 . 1 . Recycled Matter . | . . . . . . Retrieved Matter . | . . . . . . Retrieved Components . | . . . . . . Parts Scanalyzed . | . . . . . . Part Schematics Acquired . | . . . . . . Parts Damaged . | . . . . . . Bothacking | -11 -10 -9 -9 -8 -7 ------------ Run | Scr Mat Mat Min Mat Fac Used RIF Installer . | . . . . . . Robots Hacked . | . . . . . . Non-combat . | . . . . . . Combat . | . . . . . . Robot Hacks Applied . | . . . . . . Relay Couplers Released . | . . . . . . Robots Rewired . | . . . . . . Allies Hacked . | . . . . . . Hacks Repelled . | . . . . . . Allies | -11 -10 -9 -9 -8 -7 -------- Run | Scr Mat Mat Min Mat Fac Total Allies . | . . . . . . Largest Group . | . . . . . . Highest-Rated Group . | . . . . . . Highest-Rated Ally . | . . . . . . Total Orders . | . . . . . . Ally Attacks . | . . . . . . Total Damage . | . . . . . . Kills . | . . . . . . Allies Corrupted . | . . . . . . Allies Melted . | . . . . . . Intel | -11 -10 -9 -9 -8 -7 ------- Run | Scr Mat Mat Min Mat Fac Robot Analysis Total . | . . . . . . Derelict Logs Recovered 1 | . . . 1 . . Drone Launches . | . . . . . . Drone Recoveries . | . . . . . . Exploration | -11 -10 -9 -9 -8 -7 ------------- Run | Scr Mat Mat Min Mat Fac Turns Passed 1261 | 71 427 308 152 270 33 Spaces Moved 646 | 38 194 144 101 148 21 Core 9 | 3 . 6 . . . Treads 462 | 35 142 15 101 148 21 Legs 175 | . 52 123 . . . Wheels . | . . . . . . Hover . | . . . . . . Flight . | . . . . . . Fastest Speed 50 | 50 120 120 145 145 145 Average Speed 144 | 151 149 136 145 145 145 Slowest Speed 450 | 160 160 450 145 145 145 Overloaded Moves . | . . . . . . Propulsion Burnouts . | . . . . . . Robots Hopped . | . . . . . . Cave-ins Triggered . | . . . . . . Exploration Rate (%) 17 | 4 28 18 34 19 1 Regions Visited 5 Branch Regions 1 Pre-discovered Areas . | . . . . . . Known Exits Taken . | . . . . . . Unknown Exits Taken 5 | 1 1 1 1 1 . Scrap Searched . | . . . . . . Spaces Dug . | . . . . . . Terrain Destroyed 12 | . . 4 8 . . Melee . | . . . . . . Projectile . | . . . . . . AOE 12 | . . 4 8 . . Actions | -11 -10 -9 -9 -8 -7 --------- Run | Scr Mat Mat Min Mat Fac Total 860 | 52 263 229 105 188 23 Wait 71 | 2 10 37 . 22 . Move 641 | 37 193 143 100 147 21 Hop . | . . . . . . Pick Up 32 | 8 6 9 3 6 . Fast Attach 2 | . 2 . . . . Attach 24 | 5 3 12 . 2 2 Detach 1 | . . 1 . . . Swap 4 | . . 2 . 2 . Drop 12 | . 5 6 . 1 . Fire 73 | . 44 19 2 8 . Melee . | . . . . . . Ram . | . . . . . . Kick . | . . . . . . Crush . | . . . . . . Escape Stasis . | . . . . . . Rewire . | . . . . . . Trap . | . . . . . . Miscellaneous . | . . . . . . Route ------- -11/Scrapyard -10/Materials -9/Materials -9/Mines -8/Materials -7/Factory History --------- Turn | Location | Event 25 | -11/Scrapyard | Discovered new exit (range 15) 72 | -11/Scrapyard | Entered Materials 309 | -10/Materials | Build established: Mutant 488 | -10/Materials | Discovered new exit (range 10) 499 | -10/Materials | Entered another Materials area 499 | -9/Materials | Evolved 2 slots: Propulsion x2 734 | -9/Materials | Discovered new exit (range 16) 807 | -9/Materials | Entered Mines 868 | -9/Mines | Learned 4 Materials zone layouts 952 | -9/Mines | Discovered new exit (range 5) 959 | -9/Mines | Entered Materials 959 | -8/Materials | Evolved 2 slots: Utility x1, Weapon x1 1199 | -8/Materials | Discovered new exit (range 11) 1229 | -8/Materials | Entered Factory 1229 | -7/Factory | Evolved 2 slots: Utility x1, Weapon x1 1251 | -7/Factory | Build established: Scavenger-Tank 1262 | -7/Factory | Self-destructed Last Messages --------------- >>Recycling(Report) Matter reserves: 0 Inventory: Thermal Generator (24%) Electrolaser (100%) W-25 Informer sends out distress signal. W-25 Informer suffers critical hit. Destroyed Lgt. Deuterium Engine. Y-45 Defender destroyed. W-25 Informer destroyed. Acquired 37 matter. Acquired 51 matter. Acquired Lgt. Treads. EXIT=FOUND Acquired Med. Armor Plating. PARAMETERS=UTILITY_1,WEAPON_1 LOCATION=UNKNOWN GOAL=ESCAPE Connecting with Terminal... Current location identified: Factory Map ----- +----------------------------------------------------+ | ???????????????????????????????????? | | ???????????????????????????????????? | | ???????????????????????????????????? | | ???????????????????????????????????? | | ???????????????????????????????????? | | ???????????????????????????????????? | | ???????????????????????????????????? | | ???????????????????????????????????? | | ???????????????????????????????????? | | ???????????????????????????????????? | | ??????????? ?????????????????????? | | ??????????? ???????????????????? | | ??????????? #??????????????????? | | ??????????? #??????????????????? | | ??????????? ######?????????????? | | ??????????? ??????????????? | | ??????????? ???????????????? | | ??????????# ????????????????? | | ??????????# ?????????????????? | | ??????????# ??????????????????? | | ?#????????# #??????????????????? | | ?# "??????# #??????????????????? | | ?? ????# #??????????????????? | | ?? """ ??# #??????????????????? | | ?? """ # #??????????????????? | | ?? """ /@ +??????????????????? | | ?# # #??????????????????? | | ?########## #??????????????????? | | ?# """ # #??????????????????? | | ?# ""T"" # #??????????????????? | | ?# "" "" # #??????????????????? | | ?# # #??????????????????? | | ?# + +??????????????????? | | ?# """ # #??????????????????? | | ?# """ # #??????????????????? | | ?# """ # #??????????????????? | | ?# #######??????????????????? | | ?##########????????????????????????? | | ???????????????????????????????????? | | ???????????????????????????????????? | | ???????????????????????????????????? | | ???????????????????????????????????? | | ???????????????????????????????????? | | ???????????????????????????????????? | | ???????????????????????????????????? | | ???????????????????????????????????? | | ???????????????????????????????????? | | ???????????????????????????????????? | | ???????????????????????????????????? | | ???????????????????????????????????? | +----------------------------------------------------+ Best States ------------- Heat Dissipation 34 Energy Generation 12 Energy Capacity 265 Matter Stores 300 Matter Capacity 300 Sight Range 16 Robot Scan Range 13 Terrain Scan Density 10 Armor Coverage 600 Evasion (%) 40 Recoil Reduction 4 Item Schematics ----------------- None Robot Schematics ------------------ None Fabricated ------------ Nothing Alien Tech Used ----------------- None Achievements -------------- None Challenges ------------ None Game ------ Seed HugeAerolevMagmablaster Manual? 0 Play Time 00:16:11 Cumulative 3.6 hours Start 2019.10.26 @ 18:30:00 End 2019.10.26 @ 18:46:15 Sessions 1 Manual Loads 0 Difficulty Rogue Special Mode None Game No. 8 Rogue 8 Adventurer 0 Explorer 0 Win Type - Total 0 Types 0/0/0/0/0/0/0 Lore% 1 Gallery% 10 Achievement% 7 Wizard Run 0 Options --------- ASCII 1 Keyboard 0 Movement Numpad Keybinds 0 Fullscreen 2 Font 18/TerminusBold Map View 76x50 Tactical HUD 0 Map Filters NONE Filters BRIGHTNESS(150)|SATURATION(80) Steam 1 RUN: 8e17af38-c98b-404e-9d13-49666f886313